bitfinex/quotes_BTCUSD_20251201
["timestamp","ask_amount","ask_price","bid_price","bid_amount"]
[1764605016393,0.00011731,84738.0,84737.0,0.06664]
[1764605016611,0.00011731,84738.0,84737.0,0.12916299]
[1764605016803,0.00011731,84738.0,84737.0,0.23466398]
[1764605017012,0.00011731,84738.0,84737.0,0.22318299]
[1764605017489,0.00011731,84738.0,84737.0,0.23466398]
[1764605017683,0.00011731,84738.0,84737.0,0.23666398]
[1764605018091,0.0117969,84768.0,84761.0,0.01179787]
[1764605018292,0.00011725,84768.0,84764.0,0.01179746]
[1764605018509,0.00011725,84768.0,84758.0,0.01179829]
[1764605018669,0.01191415,84768.0,84760.0,0.01179801]
[1764605018875,0.01179704,84767.0,84760.0,0.01179801]
[1764605019050,0.01179718,84766.0,84759.0,0.01179815]
[1764605019390,0.01179718,84766.0,84760.0,0.01179801]
[1764605019550,0.02712,84760.0,84749.0,0.01179954]
[1764605019754,0.35012,84760.0,84752.0,0.24778104]
[1764605019959,0.01179871,84755.0,84749.0,0.01179954]
[1764605020311,0.01179815,84759.0,84737.0,0.24782442]
[1764605020312,0.33448003,84747.0,84737.0,0.24782442]
[1764605020502,0.323,84747.0,84740.0,0.23601514]
[1764605020678,0.323,84747.0,84741.0,0.24781307]
[1764605020858,0.323,84747.0,84745.0,0.23600044]
[1764605021065,0.0495,84746.0,84742.0,0.01180052]
[1764605021282,0.00049,84746.0,84742.0,0.24781087]
[1764605021626,0.00049,84746.0,84741.0,0.01180066]
[1764605021832,0.323,84748.0,84745.0,0.0118001]
[1764605022004,0.323,84748.0,84746.0,0.23599826]
[1764605022785,0.33479815,84759.0,84750.0,0.01179941]
[1764605022971,0.323,84759.0,84753.0,0.01179899]
[1764605023172,0.323,84759.0,84755.0,0.23597284]
[1764605023379,0.323,84759.0,84754.0,0.01179885]
[1764605023794,0.323,84759.0,84756.0,0.01179857]
[1764605023993,0.323,84759.0,84754.0,0.01179885]
[1764605024265,0.02712,84760.0,84757.0,0.01179843]
[1764605024473,0.02712,84760.0,84755.0,0.24777115]
[1764605024671,0.02712,84760.0,84746.0,0.001]
[1764605024846,0.323,84755.0,84752.0,0.01179913]
[1764605025062,0.323,84755.0,84753.0,0.23597984]
[1764605025544,0.323,84755.0,84750.0,0.01179941]
[1764605025784,0.00049,84753.0,84746.0,0.24779786]
[1764605025960,0.00049,84753.0,84747.0,0.24779576]
[1764605026145,0.01228899,84753.0,84747.0,0.01179982]
[1764605026354,0.01179913,84752.0,84745.0,0.24780126]
[1764605026556,0.01179927,84751.0,84744.0,0.01180024]
[1764605026812,0.01179927,84751.0,84745.0,0.0118001]
[1764605027094,0.0495,84745.0,84739.0,0.01180094]
[1764605027299,0.03275,84740.0,84739.0,0.01180094]
[1764605027460,0.03275,84740.0,84737.0,0.24782473]
[1764605027666,0.323,84746.0,84743.0,0.01180038]
[1764605028068,0.323,84746.0,84740.0,0.0118008]
[1764605028069,0.323,84746.0,84742.0,0.01180052]
[1764605028257,0.03307,84741.0,84738.0,0.01180108]
[1764605028458,0.03307,84741.0,84738.0,0.00038961]
[1764605028814,0.04487066,84741.0,84738.0,0.00038961]
[1764605029024,0.28088467,84741.0,84738.0,0.00038961]
[1764605029446,0.01148003,84739.0,84738.0,0.00138961]
[1764605029762,0.28088448,84741.0,84738.0,0.00138961]
[1764605029906,0.23650883,84739.0,84738.0,0.00138961]
[1764605030310,0.29699886,84739.0,84738.0,0.00138961]
[1764605030582,0.28551883,84739.0,84738.0,0.00138961]
[1764605030788,0.29699886,84739.0,84738.0,0.00138961]
[1764605031149,0.61999886,84739.0,84738.0,0.00138961]
[1764605031361,0.23606456,84723.0,84717.0,0.01206639]
[1764605031574,0.23606239,84724.0,84717.0,0.0003797]
[1764605031775,0.01180289,84725.0,84719.0,0.01180372]
[1764605031985,0.05859275,84726.0,84719.0,0.24787747]
[1764605032210,0.04679,84726.0,84719.0,0.24787747]
[1764605032385,0.04679,84726.0,84721.0,0.01180344]
[1764605033008,0.04679,84726.0,84723.0,0.01180317]
[1764605033217,0.04679,84726.0,84723.0,0.24786606]
[1764605033395,0.323,84729.0,84726.0,0.01180275]
[1764605033594,0.323,84729.0,84721.0,0.01180344]
[1764605033973,0.323,84729.0,84722.0,0.24786924]
[1764605034174,0.33480233,84729.0,84722.0,0.24786924]
[1764605034381,0.323,84730.0,84724.0,0.01180303]
[1764605034722,0.323,84730.0,84720.0,0.01180358]
[1764605034723,0.0234,84723.0,84717.0,0.0121837]
[1764605034885,0.0234,84723.0,84719.0,0.01180372]
[1764605035082,0.0234,84723.0,84717.0,0.0003797]
[1764605035897,0.0234,84723.0,84718.0,0.24787888]
[1764605036101,0.0495,84719.0,84717.0,0.0013797]
[1764605036428,0.28508733,84718.0,84717.0,0.0013797]
[1764605036576,0.29656736,84718.0,84717.0,0.0013797]
[1764605036786,0.29754736,84718.0,84717.0,0.0013797]
[1764605036990,0.28606733,84718.0,84717.0,0.0013797]
[1764605037190,0.28606733,84718.0,84717.0,0.0003797]
[1764605038269,0.70339758,84718.0,84717.0,0.0003797]
[1764605038475,0.70339758,84718.0,84717.0,0.0013797]
[1764605038476,2.70339758,84718.0,84717.0,0.0013797]
[1764605038678,2.70339758,84718.0,84717.0,0.0009997]
[1764605038897,2.70339758,84718.0,84686.0,0.24796929]
[1764605038898,0.01180735,84693.0,84686.0,0.24796929]
[1764605039094,0.02712,84687.0,84680.0,0.01180916]
[1764605039318,0.02712,84687.0,84680.0,0.00011664]
[1764605039507,0.02712,84687.0,84684.0,0.0118086]
[1764605039801,0.02712,84687.0,84680.0,0.00011664]
[1764605039963,0.03892818,84687.0,84680.0,0.00011664]
[1764605040346,0.0118086,84684.0,84680.0,0.00011664]
[1764605040570,0.36192818,84687.0,84680.0,0.00011664]
[1764605040747,0.01892,84693.0,84687.0,0.01180818]
[1764605040947,0.01892,84693.0,84680.0,0.00111664]
[1764605041151,0.0495,84681.0,84680.0,0.00111664]
[1764605041375,2.38398003,84681.0,84680.0,0.00011664]
[1764605041690,0.3725,84681.0,84680.0,0.00011664]
[1764605041891,0.37201,84681.0,84680.0,0.00011664]
[1764605042186,0.03095082,84699.0,84680.0,0.00011664]
[1764605042187,0.03072693,84696.0,84688.0,0.01180804]
[1764605042340,0.323,84693.0,84686.0,0.2361658]
[1764605042563,0.0495,84686.0,84680.0,0.00011664]
[1764605042768,0.323,84688.0,84683.0,0.01180874]
[1764605042976,0.323,84688.0,84685.0,0.24797471]
[1764605043243,0.02712,84694.0,84688.0,0.24796757]
[1764605043452,0.02712,84694.0,84691.0,0.01180763]
[1764605043887,0.323,84699.0,84698.0,0.23613308]
[1764605044116,0.323,84699.0,84696.0,0.01180693]
[1764605044325,0.03549915,84719.0,84715.0,0.01180428]
[1764605044538,1.23256319,84720.0,84714.0,0.01180442]
[1764605044743,0.23608172,84717.0,84707.0,0.23610637]
[1764605044942,0.24788371,84718.0,84708.0,0.01180526]
[1764605045149,0.01148003,84719.0,84709.0,0.01180512]
[1764605045367,0.323,84719.0,84710.0,0.01180498]
[1764605045568,0.011804,84717.0,84701.0,0.01180623]
[1764605045843,0.01180386,84718.0,84698.0,0.01180665]
[1764605045844,0.01180498,84710.0,84698.0,0.01180665]
[1764605046093,0.01180512,84709.0,84701.0,0.01180623]
[1764605046291,0.01180512,84709.0,84694.0,0.01180721]
[1764605046292,0.02712,84699.0,84694.0,0.01180721]
[1764605046467,0.02712,84699.0,84696.0,0.01180693]
[1764605046670,0.00049,84695.0,84689.0,0.0118079]
[1764605046988,0.01148003,84692.0,84689.0,0.24796582]
[1764605047154,0.23616654,84686.0,84657.0,0.323]
[1764605047359,0.01180972,84676.0,84661.0,0.06105181]
[1764605047756,1.23256319,84671.0,84664.0,0.01181139]
[1764605047924,1.23256319,84671.0,84669.0,0.23621284]
[1764605048170,1.23256319,84680.0,84672.0,0.01181027]
[1764605048343,0.2856566,84690.0,84669.0,0.01192733]
[1764605048344,0.323,84689.0,84685.0,0.01180846]
[1764605048587,0.02712,84699.0,84696.0,0.01180693]
[1764605048789,0.02712,84699.0,84695.0,0.24794695]
[1764605049057,0.02712,84699.0,84693.0,0.01180735]
[1764605049208,0.03892651,84699.0,84692.0,0.24795658]
[1764605049411,0.03892651,84699.0,84692.0,0.01180749]
[1764605049622,0.23663783,84693.0,84685.0,0.24797509]
[1764605049843,0.01180749,84692.0,84685.0,0.24797509]
[1764605050044,0.323,84691.0,84686.0,0.24797378]
[1764605050248,0.323,84691.0,84683.0,0.01180874]
[1764605050688,0.01180804,84688.0,84680.0,0.23618209]
[1764605050851,0.03307,84681.0,84680.0,0.00011664]
[1764605051052,0.26974048,84681.0,84680.0,0.00011664]
[1764605051255,2.71976728,84681.0,84680.0,0.00011664]
[1764605051456,2.65323051,84681.0,84680.0,0.00011664]
[1764605052062,0.65323051,84681.0,84680.0,0.00011664]
[1764605052259,2.65323051,84681.0,84680.0,0.00011664]
[1764605052459,2.65323051,84681.0,84660.0,0.01362506]
[1764605052460,0.23623164,84663.0,84660.0,0.01362506]
[1764605052678,0.02389,84661.0,84660.0,0.01362506]
[1764605053003,0.35837003,84661.0,84660.0,0.01362506]
[1764605053182,0.06049003,84661.0,84660.0,0.01362506]
[1764605053908,0.06049003,84661.0,84660.0,0.01462506]
[1764605054113,0.00011712,84663.0,84660.0,0.01462506]
[1764605054443,0.00011712,84663.0,84660.0,0.02543701]
[1764605054659,0.00011712,84663.0,84660.0,0.02643701]
[1764605054869,0.00011712,84663.0,84660.0,0.01462506]
[1764605055015,0.01197003,84661.0,84660.0,0.01462506]
[1764605055541,0.06098003,84661.0,84660.0,0.01462506]
[1764605055943,0.00049,84661.0,84660.0,0.01549588]
[1764605056148,0.00049,84661.0,84660.0,0.01649588]
[1764605056350,0.00011712,84663.0,84660.0,0.01649588]
[1764605056580,0.24815983,84663.0,84660.0,0.01649588]
[1764605056857,0.28573368,84662.0,84660.0,0.01549588]
[1764605057038,0.01148003,84661.0,84660.0,0.01462506]
[1764605057419,0.06098003,84661.0,84660.0,0.01362506]
[1764605057604,2.16864608,84661.0,84660.0,0.01362506]
[1764605057805,0.00011712,84663.0,84660.0,0.01462506]
[1764605058004,0.04901,84661.0,84660.0,0.01462506]
[1764605058835,0.04901,84661.0,84660.0,0.01362506]
[1764605059053,0.01192865,84663.0,84660.0,0.01462506]
[1764605059252,0.06001003,84661.0,84660.0,0.01462506]
[1764605059720,0.06098003,84661.0,84660.0,0.01362506]
[1764605059866,0.37153,84661.0,84660.0,0.01462506]
[1764605060259,2.38398003,84661.0,84660.0,0.01462506]
[1764605060510,2.38398003,84661.0,84660.0,0.01362506]
[1764605061613,2.62021631,84661.0,84660.0,0.01362506]
[1764605061844,2.73544227,84661.0,84660.0,0.01362506]
[1764605062075,2.76009956,84661.0,84660.0,0.01362506]
[1764605062246,2.73544227,84661.0,84660.0,0.01362506]
[1764605062444,2.76009763,84661.0,84660.0,0.01362506]
[1764605062649,2.63339164,84661.0,84660.0,0.01362506]
[1764605062794,2.62021631,84661.0,84660.0,0.01549588]
[1764605063198,2.62769628,84661.0,84660.0,0.01549588]
[1764605063404,2.63917631,84661.0,84660.0,0.01549588]
[1764605063601,2.62769628,84661.0,84660.0,0.01549588]
[1764605064009,0.24803376,84666.0,84660.0,0.01549588]
[1764605064010,0.01549588,84671.0,84670.0,0.24802172]
[1764605064210,0.0828191,84707.0,84670.0,0.24802172]
[1764605064211,0.04110602,84709.0,84698.0,0.01180665]
[1764605064560,0.00011734,84709.0,84703.0,0.01180595]
[1764605064858,0.00011734,84709.0,84692.0,0.2361476]
[1764605064859,2.09544,84708.0,84690.0,0.01180776]
[1764605065059,0.01567,84702.0,84694.0,0.01180721]
[1764605065404,0.01567,84702.0,84698.0,0.01180665]
[1764605065606,0.09464,84707.0,84702.0,0.01180609]
[1764605065878,0.09464,84707.0,84704.0,0.01180581]
[1764605066051,0.00011734,84709.0,84704.0,0.01180581]
[1764605066261,0.00011734,84709.0,84706.0,0.01180553]
[1764605066461,0.00011734,84709.0,84704.0,0.01180581]
[1764605066622,0.09555734,84709.0,84705.0,0.01180567]
[1764605066825,0.09555734,84709.0,84704.0,0.01180581]
[1764605067044,0.09555734,84709.0,84698.0,0.01180665]
[1764605067045,0.01567,84705.0,84698.0,0.01180665]
[1764605067261,0.01180567,84705.0,84698.0,0.01180665]
[1764605067462,0.01180567,84705.0,84695.0,0.01180707]
[1764605067463,0.323,84704.0,84695.0,0.01180707]
[1764605067638,0.01567,84699.0,84695.0,0.01180707]
[1764605067852,0.06045,84696.0,84684.0,0.0118086]
[1764605068057,0.04459846,84685.0,84675.0,0.01180986]
[1764605068443,0.01180874,84683.0,84672.0,0.01181027]
[1764605068609,0.73530846,84682.0,84677.0,0.24800117]
[1764605068809,0.323,84684.0,84677.0,0.24800117]
[1764605068810,0.323,84681.0,84678.0,0.01180944]
[1764605068993,0.323,84681.0,84678.0,0.24799705]
[1764605069195,0.04878,84679.0,84675.0,0.01180986]
[1764605069399,0.04878,84679.0,84651.0,0.06252299]
[1764605069400,0.04878,84679.0,84677.0,0.23619114]
[1764605071099,0.323,84686.0,84684.0,0.23617034]
[1764605071318,0.33480776,84690.0,84683.0,0.01180874]
[1764605071983,0.46887,84679.0,84674.0,0.23619839]
[1764605072337,0.46887,84679.0,84675.0,0.24800585]
[1764605072693,0.09709,84678.0,84675.0,0.24800585]
[1764605072896,0.09709,84678.0,84670.0,0.23620919]
[1764605072897,0.01561,84676.0,84670.0,0.23620919]
[1764605073215,0.01561,84676.0,84660.0,0.24986179]
[1764605073216,0.01181139,84664.0,84660.0,0.01362506]
[1764605073533,0.06245,84661.0,84660.0,0.01362506]
[1764605074056,0.323,84662.0,84660.0,0.01362506]
[1764605074432,0.34629114,84666.0,84660.0,0.02582556]
[1764605074631,0.01561,84661.0,84660.0,0.01401361]
[1764605075033,0.01561,84661.0,84660.0,0.01501361]
[1764605075659,0.01561,84661.0,84660.0,0.01401361]
[1764605075836,0.13479,84661.0,84660.0,0.01501361]
[1764605076257,0.01561,84661.0,84660.0,0.01501361]
[1764605076622,0.06303909,84668.0,84665.0,0.24803567]
[1764605076873,0.03829,84668.0,84665.0,0.01181125]
[1764605077074,0.03829,84668.0,84667.0,0.00164094]
[1764605077453,0.4578,84668.0,84667.0,0.00164094]
[1764605078259,0.49404654,84668.0,84667.0,0.00164094]
[1764605078577,0.48256651,84668.0,84667.0,0.00164094]
[1764605079658,0.38605651,84668.0,84667.0,0.00164094]
[1764605080681,0.323,84668.0,84667.0,0.00164094]
[1764605082179,0.41951,84668.0,84667.0,0.00164094]
[1764605082385,2.41951,84668.0,84667.0,0.00164094]
[1764605082687,0.41951,84668.0,84667.0,0.00164094]
[1764605083011,0.66720678,84668.0,84667.0,0.00164094]
[1764605083334,0.69200073,84668.0,84667.0,0.00164094]
[1764605086296,2.69200073,84668.0,84667.0,0.00164094]
[1764605086501,2.69200073,84668.0,84660.0,0.01401361]
[1764605086502,2.57071631,84661.0,84660.0,0.01401361]
[1764605086833,2.59585026,84661.0,84660.0,0.01401361]
[1764605087027,2.69140026,84661.0,84660.0,0.01401361]
[1764605087249,2.72237887,84661.0,84660.0,0.01401361]
[1764605087660,2.69140026,84661.0,84660.0,0.01401361]
[1764605088616,0.44368395,84661.0,84660.0,0.01401361]
[1764605088816,0.67992023,84661.0,84660.0,0.01401361]
[1764605089020,0.69140026,84661.0,84660.0,0.01401361]
[1764605090222,0.34360631,84661.0,84660.0,0.01401361]
[1764605090606,0.33212628,84661.0,84660.0,0.01401361]
[1764605090773,0.23657628,84661.0,84660.0,0.01401361]
[1764605090974,0.23623628,84661.0,84660.0,0.01401361]
[1764605091268,0.33274628,84661.0,84660.0,0.01401361]
[1764605091521,0.34422631,84661.0,84660.0,0.01401361]
[1764605091722,0.01148003,84661.0,84660.0,0.01401361]
[1764605091926,0.01181097,84667.0,84660.0,0.01401361]
[1764605092137,0.23719628,84661.0,84660.0,0.01401361]
[1764605092352,0.57167631,84661.0,84660.0,0.01401361]
[1764605092649,0.32396,84661.0,84660.0,0.01401361]
[1764605095142,0.56019628,84661.0,84660.0,0.01401361]
[1764605095371,0.23623628,84661.0,84660.0,0.01401361]
[1764605095563,0.32777628,84661.0,84660.0,0.01401361]
[1764605095775,0.33209628,84661.0,84660.0,0.01401361]
[1764605096313,0.09586,84661.0,84660.0,0.01401361]
[1764605096883,0.00432,84661.0,84660.0,0.01401361]
[1764605097407,0.73530846,84670.0,84662.0,0.01181167]
[1764605097610,0.34784058,84669.0,84665.0,0.24803457]
[1764605097812,0.323,84669.0,84668.0,0.23621675]
[1764605098046,0.323,84669.0,84664.0,0.23622619]
[1764605098228,0.09154,84668.0,84665.0,0.01181125]
[1764605098426,0.323,84669.0,84665.0,0.01181125]
[1764605098427,0.323,84669.0,84668.0,0.23621675]
[1764605098933,0.323,84669.0,84667.0,0.23621926]
[1764605099131,0.323,84669.0,84666.0,0.01181111]
[1764605099372,0.0248591,84668.0,84666.0,0.01181111]
[1764605099663,0.38636,84667.0,84662.0,0.01181167]
[1764605099869,0.38636,84667.0,84662.0,0.24804382]
[1764605100080,0.01181041,84671.0,84662.0,0.24804382]
[1764605100081,0.03887,84673.0,84670.0,0.23620986]
[1764605100390,0.02486011,84677.0,84674.0,0.24800935]
[1764605100599,0.01180832,84686.0,84673.0,0.01181014]
[1764605100600,0.03097861,84696.0,84691.0,0.01180763]
[1764605100805,0.06188541,84709.0,84699.0,0.23613029]
[1764605100806,0.04449,84707.0,84699.0,0.23613029]
[1764605100943,0.060294,84717.0,84699.0,0.23613029]
[1764605100944,0.07946861,84717.0,84699.0,0.23613029]
[1764605101143,0.77979846,84720.0,84718.0,0.23607733]
[1764605101144,0.02489053,84719.0,84718.0,0.23607733]
[1764605101348,0.04632,84726.0,84725.0,0.23605783]
[1764605101546,0.10568,84719.0,84717.0,0.2360788]
[1764605101800,0.04232,84719.0,84717.0,0.2360788]
[1764605101943,0.04643743,84726.0,84725.0,0.23605783]
[1764605102147,0.00011743,84726.0,84725.0,0.23605783]
[1764605102498,0.00011743,84726.0,84725.0,0.39220783]
[1764605102857,0.00011743,84726.0,84725.0,0.57263901]
[1764605103067,0.09605839,84726.0,84713.0,0.04925]
[1764605103273,0.09605839,84726.0,84705.0,0.01180567]
[1764605103274,2.0,84721.0,84705.0,0.01180567]
[1764605103468,2.0,84721.0,84704.0,0.23611493]
[1764605103469,0.323,84714.0,84709.0,0.01180512]
[1764605103722,0.323,84714.0,84708.0,0.01180526]
[1764605104080,0.323,84714.0,84713.0,0.23609127]
[1764605104277,0.323,84714.0,84712.0,0.23609185]
[1764605104557,0.04632,84718.0,84711.0,0.01180484]
[1764605104718,0.04632,84718.0,84708.0,0.01180526]
[1764605105057,0.04632,84718.0,84702.0,0.23612026]
[1764605105058,0.01180818,84687.0,84680.0,0.23618156]
[1764605105259,1.05830846,84690.0,84684.0,0.0118086]
[1764605105443,1.10462846,84690.0,84687.0,0.01180818]
[1764605105618,1.10462846,84690.0,84687.0,0.24797]
[1764605105821,1.10462846,84690.0,84686.0,0.01180832]
[1764605106019,1.10462846,84690.0,84688.0,0.23615991]
[1764605106222,0.04632,84690.0,84688.0,0.23621895]
[1764605106422,0.323,84697.0,84695.0,0.23614144]
[1764605106622,0.0118047,84712.0,84694.0,0.01180721]
[1764605106623,0.04632,84718.0,84708.0,0.01180526]
[1764605106822,0.04632,84718.0,84715.0,0.01180428]
[1764605107042,0.01180289,84725.0,84720.0,0.23606924]
[1764605107043,0.323,84724.0,84720.0,0.23606924]
[1764605107243,0.323,84724.0,84712.0,0.0118047]
[1764605107244,0.04632,84716.0,84708.0,0.01180526]
[1764605107453,0.04632,84716.0,84705.0,0.01180567]
[1764605107454,0.04632,84716.0,84705.0,0.01892]
[1764605107649,0.38112414,84716.0,84709.0,0.01180512]
[1764605107828,0.38112414,84716.0,84708.0,0.01180526]
[1764605108049,0.38112414,84716.0,84708.0,5.904e-05]
[1764605108050,0.01180456,84713.0,84708.0,5.904e-05]
[1764605108250,0.06336,84709.0,84708.0,5.904e-05]
[1764605108614,0.323,84711.0,84708.0,5.904e-05]
[1764605108784,0.07484003,84709.0,84708.0,5.904e-05]
[1764605109157,0.10748003,84709.0,84708.0,5.904e-05]
[1764605109712,0.43048003,84709.0,84708.0,5.904e-05]
[1764605109842,2.419,84709.0,84708.0,5.904e-05]
[1764605110049,2.43048003,84709.0,84708.0,5.904e-05]
[1764605110252,0.3348086,84684.0,84676.0,0.23619344]
[1764605110576,0.02066,84677.0,84671.0,0.24801724]
[1764605110776,0.02066,84677.0,84671.0,0.01181041]
[1764605110978,0.323,84681.0,84677.0,0.23619032]
[1764605111325,0.323,84678.0,84672.0,0.01181027]
[1764605111448,0.323,84678.0,84671.0,0.24801805]
[1764605111449,0.01148003,84678.0,84671.0,0.24801805]
[1764605111643,0.01148003,84678.0,84674.0,0.01181]
[1764605111857,0.06575,84680.0,84676.0,0.01180972]
[1764605112061,0.06575,84680.0,84677.0,0.01180958]
[1764605112474,0.24806957,84684.0,84681.0,0.01180902]
[1764605112475,8.766e-05,84684.0,84681.0,0.01180902]
[1764605112787,8.766e-05,84684.0,84682.0,0.23617577]
[1764605112991,8.766e-05,84684.0,84683.0,0.04925]
[1764605113457,8.766e-05,84684.0,84682.0,0.23617577]
[1764605115435,8.766e-05,84684.0,84683.0,0.29397819]
[1764605115813,8.766e-05,84684.0,84683.0,0.35650118]
[1764605116001,8.766e-05,84684.0,84683.0,0.36798217]
[1764605116568,8.766e-05,84684.0,84683.0,0.35650118]
[1764605116708,8.766e-05,84684.0,84683.0,0.36798217]
[1764605117724,0.0651,84737.0,84683.0,0.36798217]
[1764605117725,0.04632,84736.0,84733.0,0.01180177]
[1764605117924,0.04643737,84736.0,84733.0,0.24783576]
[1764605118131,0.04643737,84736.0,84733.0,0.01180177]
[1764605118567,0.04643737,84736.0,84733.0,0.24783729]
[1764605118801,0.04643737,84736.0,84735.0,0.23602997]
[1764605119319,0.323,84732.0,84720.0,0.01180358]
[1764605119549,0.323,84732.0,84718.0,0.01180386]
[1764605119550,0.00065,84721.0,84714.0,0.01180442]
[1764605119823,0.24785549,84727.0,84714.0,0.01180442]
[1764605119824,0.73530846,84720.0,84719.0,0.24787827]
[1764605120069,0.24785204,84728.0,84719.0,0.01180372]
[1764605120274,0.24785204,84728.0,84719.0,0.24787772]
[1764605120275,0.01180275,84726.0,84719.0,0.24787772]
[1764605120396,0.24785791,84726.0,84719.0,0.24787772]
[1764605120603,0.01148003,84729.0,84721.0,0.24786963]
[1764605120823,0.01148003,84729.0,84723.0,0.01180317]
[1764605120824,0.02328236,84729.0,84723.0,0.01180317]
[1764605121024,0.02328236,84729.0,84722.0,0.24786675]
[1764605121224,0.02328236,84729.0,84719.0,0.01180372]
[1764605121427,0.02328236,84729.0,84722.0,0.0118033]
[1764605121626,0.01180275,84726.0,84720.0,0.01180358]
[1764605121829,0.01180261,84727.0,84721.0,0.01180344]
[1764605122026,0.01180261,84727.0,84717.0,0.011804]
[1764605122027,0.06336,84721.0,84713.0,0.23609126]
[1764605122229,0.01148003,84718.0,84716.0,0.23608277]
[1764605122607,0.11051,84717.0,84715.0,0.24788997]
[1764605122807,0.11051,84717.0,84714.0,0.24789176]
[1764605122808,0.11051,84717.0,84714.0,0.01180442]
[1764605123162,0.11051,84717.0,84715.0,0.23608558]
[1764605123364,0.11051,84717.0,84715.0,0.23608298]
[1764605123652,0.323,84722.0,84721.0,0.23606897]
[1764605123812,0.323,84729.0,84723.0,0.01180317]
[1764605124151,0.323,84729.0,84719.0,0.01180372]
[1764605124152,0.01148003,84721.0,84714.0,0.01180442]
[1764605124458,0.323,84714.0,84713.0,0.23609127]
[1764605124932,0.323,84728.0,84723.0,0.01180317]
[1764605125114,0.323,84728.0,84725.0,0.01180289]
[1764605125477,0.323,84728.0,84727.0,0.23605226]
[1764605126022,0.04643737,84736.0,84723.0,0.01180317]
[1764605126250,0.323,84732.0,84724.0,0.23606062]
[1764605126450,0.323,84732.0,84702.0,0.47223838]
[1764605126451,0.02044,84724.0,84710.0,0.01180498]
[1764605126629,0.323,84719.0,84713.0,0.23609062]
[1764605126884,0.323,84719.0,84718.0,0.23607733]
[1764605127088,0.323,84719.0,84716.0,0.24788623]
[1764605127311,0.323,84719.0,84717.0,0.23607985]
[1764605127706,0.323,84719.0,84712.0,0.0118047]
[1764605127707,0.0118033,84722.0,84709.0,0.23610221]
[1764605127906,0.323,84703.0,84695.0,0.01180707]
[1764605128238,0.23614973,84693.0,84681.0,0.23617952]
[1764605128458,0.01180721,84694.0,84672.0,0.09775]
[1764605128459,0.04489,84689.0,84679.0,0.01892]
[1764605128586,0.36789,84689.0,84682.0,0.23617634]
[1764605128792,0.36789,84689.0,84675.0,0.01180986]
[1764605128793,0.01180888,84682.0,84666.0,0.01181111]
[1764605128992,0.01180944,84678.0,84670.0,0.23620969]
[1764605129240,0.34628933,84679.0,84670.0,0.01181055]
[1764605129409,0.323,84678.0,84669.0,0.01181069]
[1764605129613,0.323,84678.0,84673.0,0.01181014]
[1764605129812,0.04493,84696.0,84685.0,0.01180846]
[1764605130010,0.04493,84696.0,84689.0,0.0118079]
[1764605130234,0.01148003,84695.0,84688.0,0.24796887]
[1764605130458,0.323,84694.0,84684.0,0.23617164]
[1764605130753,0.33480721,84694.0,84686.0,0.24797465]
[1764605130954,0.323,84689.0,84682.0,0.24798579]
[1764605131285,1.55502808,84692.0,84689.0,0.0118079]
[1764605131407,0.323,84692.0,84690.0,0.23615478]
[1764605132126,1.23202808,84700.0,84690.0,0.23615478]
[1764605132127,0.323,84699.0,84694.0,0.01180721]
[1764605132312,0.323,84699.0,84694.0,0.24795119]
[1764605132507,0.09119,84698.0,84694.0,0.01180721]
[1764605132760,0.57093749,84699.0,84690.0,0.01180776]
[1764605133065,0.323,84699.0,84696.0,0.01180693]
[1764605133293,0.01180623,84701.0,84690.0,0.01180776]
[1764605133568,0.01180623,84701.0,84693.0,0.01180735]
[1764605133569,0.04624,84698.0,84693.0,0.01180735]
[1764605133805,0.05804665,84698.0,84692.0,0.24795702]
[1764605134006,0.01270735,84693.0,84685.0,0.01180846]
[1764605134254,0.323,84692.0,84685.0,0.01180846]
[1764605134457,0.323,84692.0,84688.0,0.01180804]
[1764605134588,0.06165,84689.0,84686.0,0.24797485]
[1764605134803,0.01180916,84680.0,84666.0,0.01181111]
[1764605135002,0.01180832,84686.0,84666.0,0.01181111]
[1764605135003,0.57102987,84668.0,84666.0,0.00038855]
[1764605135209,0.05737003,84667.0,84666.0,0.00038855]
[1764605135435,0.04589,84667.0,84666.0,0.00038855]
[1764605135778,0.06128,84667.0,84666.0,0.00038855]
[1764605135912,0.07276003,84667.0,84666.0,0.00038855]
[1764605136518,0.16312172,84667.0,84666.0,0.00038855]
[1764605136717,0.38428,84667.0,84666.0,0.00038855]
[1764605137218,0.39576003,84667.0,84666.0,0.00038855]
[1764605138789,0.36858,84667.0,84666.0,0.00038855]
[1764605139666,0.323,84667.0,84666.0,0.00038855]
[1764605141052,1.25094808,84676.0,84666.0,0.00038855]
[1764605141053,1.23202808,84680.0,84674.0,0.01181]
[1764605141273,1.23202808,84680.0,84676.0,0.01180972]
[1764605141486,0.01180874,84683.0,84676.0,0.01180972]
[1764605141807,0.01180888,84682.0,84677.0,0.01180958]
[1764605141950,0.01180888,84682.0,84675.0,0.2480061]
[1764605142148,0.323,84681.0,84675.0,0.2480061]
[1764605142349,0.323,84681.0,84675.0,0.24581582]
[1764605142553,0.04624,84684.0,84678.0,0.24799764]
[1764605142748,0.01180874,84683.0,84677.0,0.01180958]
[1764605142949,0.014,84682.0,84678.0,0.01180944]
[1764605143368,0.014,84682.0,84681.0,0.23618048]
[1764605143765,0.014,84682.0,84679.0,0.24799346]
[1764605143766,0.06024,84682.0,84679.0,0.0118093]
[1764605143967,0.04624,84682.0,84678.0,0.23618878]
[1764605144176,0.04624,84682.0,84679.0,0.0118093]
[1764605144387,0.04624,84682.0,84681.0,0.23318048]
[1764605144621,0.04624,84682.0,84680.0,0.23618317]
[1764605144819,0.323,84685.0,84682.0,0.01180888]
[1764605145031,0.323,84685.0,84684.0,0.39320212]
[1764605145239,0.323,84699.0,84697.0,0.01180679]
[1764605145381,0.323,84699.0,84694.0,0.01180721]
[1764605145382,0.323,84699.0,84688.0,0.01180804]
[1764605145582,0.323,84695.0,84688.0,0.01180804]
[1764605145782,0.04624,84689.0,84686.0,0.01180832]
[1764605145989,0.04624,84689.0,84686.0,0.24797445]
[1764605146284,0.04624,84689.0,84687.0,0.23616352]
[1764605146485,0.04624,84689.0,84688.0,0.23616096]
[1764605146923,0.04624,84689.0,84686.0,0.01180832]
[1764605147119,0.04624,84689.0,84688.0,0.23616096]
[1764605147521,0.04624,84689.0,84687.0,0.23616344]
[1764605147725,0.04624,84689.0,84688.0,0.23616096]
[1764605148101,0.04624,84689.0,84687.0,0.23616344]
[1764605148336,0.04624,84689.0,84688.0,0.23616096]
[1764605148534,0.04624,84689.0,84687.0,0.23616344]
[1764605148748,0.36924,84689.0,84683.0,0.01180874]
[1764605148900,0.3810479,84689.0,84683.0,0.01180874]